Cogmind - Beta 15 @@@ ROGUE MODE // 2025.07.28 @ 14:32:14 Player: Zoe Result: Destroyed by B-75 Beast with Heavy Machine Gun Performance ------------- Evolutions (3) 1500 Regions Visited (9) 1800 Robots Destroyed (50) 250 Value Destroyed (1307) 1307 Prototype IDs (1) 20 Alien Tech Used (0) 0 Bonus (585) 585 TOTAL SCORE: 5462 Bonus ------- High Alert Combat Kills 2 Follower Combat Kills 583 Cogmind --------- Core Integrity 0/700 Matter 151/300 Energy 430/430 System Corruption 37% Temperature Cool (0) Movement Core (500) Ox9 Location -7/Lower Caves Parts ------- > --- POWER (2) -------- Nuclear Core Improved Deuterium Engine > --- PROPULSION (4) --- (None) > --- UTILITY (4) ------ (None) > --- WEAPON (3) ------- Plasma Cannon Ripper Ripper > --- INVENTORY (5) ---- (None) Peak State ------------ > --- POWER ------------ Nuclear Core Nuclear Core > --- PROPULSION ------- Heavy Treads Heavy Treads > --- UTILITY ---------- Improved Cooling System Improved Terrain Scan Processor Transmission Jammer Reaction Control System > --- WEAPON ----------- Coil Gun Hypervelocity Gauss Rifle Ripper > --- INVENTORY -------- Nuclear Core Improved Deuterium Engine Plasma Cannon Plasma Cannon Ripper [Rating: 59] Favorites ----------- Power Nuclear Core Engine Improved Ion Engine Power Core Nuclear Core Propulsion Heavy Treads Treads Heavy Treads Leg Aluminum Leg Utility Improved Cooling System Device Improved Cooling System Storage Large Storage Unit Processor Improved Terrain Scan Processor Weapon Heavy Battle Rifle Energy Gun Heavy Particle Gun Energy Cannon Heavy Particle Cannon Ballistic Gun Heavy Battle Rifle Ballistic Cannon Flak Cannon Slashing Weapon Ripper Build | -11 -10 -9 -8 -8 -7 -7 -7 -7 -7 ------- Run | Yrd Mat Mat Mat Sto Fac Was Fac Low Low Slots Evolved 6 | . . 2 2 . 2 . . . . Power 1 | . . . 1 . . . . . . Propulsion 2 | . . 1 . . 1 . . . . Utility 2 | . . 1 . . 1 . . . . Weapon 1 | . . . 1 . . . . . . Parts Attached 71 | 7 . 20 3 7 7 6 9 6 6 Power 14 | 1 . 3 3 . 2 1 2 1 1 Engine 6 | 1 . 3 1 . . . . . 1 Core 8 | . . . 2 . 2 1 2 1 . Reactor . | . . . . . . . . . . Propulsion 15 | 2 . 7 . 1 2 2 . . 1 Treads 9 | . . 3 . 1 2 2 . . 1 Leg 6 | 2 . 4 . . . . . . . Wheel . | . . . . . . . . . . Hover . | . . . . . . . . . . Flight . | . . . . . . . . . . Utility 14 | 2 . 4 . . 3 2 3 . . Device 10 | 1 . 2 . . 3 2 2 . . Storage 2 | 1 . 1 . . . . . . . Processor 2 | . . 1 . . . . 1 . . Hackware . | . . . . . . . . . . Protection . | . . . . . . . . . . Artifact . | . . . . . . . . . . Weapon 28 | 2 . 6 . 6 . 1 4 5 4 Energy Gun 9 | 1 . 4 . 4 . . . . . Energy Cannon 4 | . . . . . . . 2 . 2 Ballistic Gun 8 | 1 . 1 . 2 . . . 2 2 Ballistic Cannon 5 | . . 1 . . . 1 2 1 . Launcher . | . . . . . . . . . . Special Weapon . | . . . . . . . . . . Impact Weapon . | . . . . . . . . . . Slashing Weapon 2 | . . . . . . . . 2 . Piercing Weapon . | . . . . . . . . . . Special Melee Weapon . | . . . . . . . . . . Unidentified Prototypes 1 | . . . . 1 . . . . . Corrupted Parts 2 | . . . . . . 2 . . . System Corruption 6 | . . . . . . 6 . . . Parts Lost 26 | . . 6 . . . 6 2 . 12 Power 4 | . . . . . . 1 1 . 2 Propulsion 8 | . . 3 . . . 2 . . 3 Utility 7 | . . 2 . . . 1 . . 4 Weapon 7 | . . 1 . . . 2 1 . 3 Highest Loss Streak 9 | . . 4 . . . 6 1 . 9 To Critical Strikes 1 | . . 1 . . . . . . . Average Backups 7 | 5 6 9 6 12 14 7 4 4 4 Power 2 | . 1 2 3 4 5 2 2 2 2 Propulsion 1 | 3 4 4 2 3 1 . . . . Utility . | . . . . 1 1 . . . . Weapon 3 | . 1 2 1 4 6 3 2 2 2 Tool/Special . | . . . . . . . . . . Unused Backups 14 | . . 2 1 2 1 6 . 2 . Power 8 | . . 2 1 . 1 2 . 2 . Propulsion 3 | . . . . 2 . 1 . . . Utility 2 | . . . . . . 2 . . . Weapon 1 | . . . . . . 1 . . . Tool/Special . | . . . . . . . . . . Average Slot Usage (%) 84 | . 100 92 99 100 96 43 64 83 71 Engine 3 | . 14 11 11 . . . . . . Core 10 | . . . 5 18 15 5 11 15 12 Treads 14 | . . 3 27 27 27 12 15 15 12 Leg 6 | . 28 27 . . . . . . . Device 17 | . 14 11 18 18 22 12 10 23 16 Storage 4 | . 14 11 9 9 7 2 . . . Processor 4 | . . 7 . . . . 6 7 6 Energy Gun 7 | . 14 9 9 18 23 5 . . . Energy Cannon 1 | . . . . . . . 5 1 2 Ballistic Gun 6 | . 14 3 9 7 . . . 11 10 Ballistic Cannon 4 | . . 8 9 1 . 4 13 3 . Slashing Weapon 2 | . . . . . . . . 5 7 Peak Build Rating 59 | 9 10 15 20 27 40 42 54 57 59 Average Rating 34 | 5 9 13 17 22 37 29 46 56 48 On Entrance 27 | . 9 10 13 19 27 40 42 54 57 Naked Turns 24 | . . . . . . 24 . . . Heaviest Build 48 | 15 15 36 46 46 48 47 36 36 32 Greatest Support 140 | 20 20 60 60 60 96 140 140 140 140 Greatest Overweight (x) 10 | 4 . 3 . . . 10 . . 9 Average Overweight (x) . | . . . . . . . . . . Largest Inventory Capacity 15 | 8 8 15 15 15 15 15 5 5 5 Average Capacity 9 | 7 8 13 15 15 15 7 5 5 5 Most Carried 15 | 7 8 13 12 15 15 15 5 5 5 Average Carried 7 | 5 6 9 7 12 14 7 4 4 4 Final Capacity 15 | 8 8 15 15 15 15 5 5 5 5 Final Carried 15 | 6 8 6 9 15 15 5 4 5 . Class Distribution -------------------- 32% | Mutant 22% | Derelict-Mutant 14% | Gunner 11% | Tank 10% | Scavenger-Mutant 5% | Commander-Gunner 4% | Scavenger-Gunner Dominant Class ---------------- Mutant | -10/Materials Mutant | -9/Materials Scavenger-Gunner | -8/Materials Commander-Gunner | -8/Storage Gunner | -7/Factory Scavenger-Mutant | -7/Waste Tank | -7/Factory Derelict-Mutant | -7/Lower Caves Mutant | -7/Lower Caves Resources | -11 -10 -9 -8 -8 -7 -7 -7 -7 -7 ----------- Run | Yrd Mat Mat Mat Sto Fac Was Fac Low Low Matter Collected 2108 | 285 33 452 43 185 70 312 147 483 98 Remotely . | . . . . . . . . . . Salvage Created 3267 | 112 144 803 43 219 . 1633 177 136 . Parts 103 | 8 7 42 4 12 . 13 9 8 . Haulers Intercepted 5 | . 1 2 1 1 . . . . . Recyclers Shooed 2 | . . . . 1 . . 1 . . Parts Field Recycled . | . . . . . . . . . . Retrieved Matter . | . . . . . . . . . . Parts Self-Destructed 10 | . . . . . . . . 10 . Prevented . | . . . . . . . . . . Kills | -11 -10 -9 -8 -8 -7 -7 -7 -7 -7 ------- Run | Yrd Mat Mat Mat Sto Fac Was Fac Low Low Combat Hostiles Destroyed 36 | . 2 17 . 3 . 6 3 5 . Guns 14 | . 2 9 . 3 . . . . . Cannons 22 | . . 8 . . . 6 3 5 . Classes Destroyed 11 | 2 2 5 . 1 . 1 . . . Worker 2 | . . . . 2 . . . . . Tunneler 1 | 1 . . . . . . . . . Hauler 5 | . 1 2 1 1 . . . . . Recycler 3 | 1 . . . 1 . . 1 . . Mechanic 1 | . . 1 . . . . . . . Watcher 2 | . . 1 . . . . 1 . . Swarmer 13 | . . 2 . 3 . . 3 5 . Grunt 10 | . 2 8 . . . . . . . Brawler 2 | . . 2 . . . . . . . Sentry 5 | . . 5 . . . . . . . Compactor 6 | . . . . . . 6 . . . Packrat 1 | . . . . . . . . 1 . Best Kill Streak 5 | 2 2 4 1 5 . 4 4 2 . Combat Bots Only 4 | . 2 3 . 2 . 4 3 2 . Max Kills in Single Turn 2 | 1 1 2 1 2 . 1 1 1 . Gunslinging . | . . . . . . . . . . Exploded . | . . . . . . . . . . Melee . | . . . . . . . . . . Uniques/NPCs Destroyed . | . . . . . . . . . . Combat | -11 -10 -9 -8 -8 -7 -7 -7 -7 -7 -------- Run | Yrd Mat Mat Mat Sto Fac Was Fac Low Low Hostile Shots Fired 378 | . 14 120 . 27 . 6 11 24 176 Missed 118 | . 8 37 . 7 . . 4 9 53 Hits 260 | . 6 83 . 20 . 6 7 15 123 Melee 13 | . . 7 . . . 6 . . . Projectile 247 | . 6 76 . 20 . . 7 15 123 Critical Strikes 6 | . . 2 . . . 2 . . 2 Damage Taken 4197 | . 82 1047 . 205 . 266 243 267 2087 Core 958 | . 27 195 . 16 . 81 44 32 563 Absorbed by Shields . | . . . . . . . . . . Core Remaining (%) 84 | 100 89 51 . 97 . . . . . Volleys Fired 184 | 5 11 65 2 12 . 33 15 16 25 Largest 3 | 2 2 2 3 3 . 3 3 3 2 Hottest 165 | 70 70 112 112 165 . 165 149 149 110 Shots Fired 346 | 10 22 120 6 36 . 43 23 51 35 Gun 187 | 10 22 75 4 36 . 14 . 5 21 Cannon 159 | . . 45 2 . . 29 23 46 14 Launcher . | . . . . . . . . . . Special . | . . . . . . . . . . Kinetic 207 | 5 11 68 4 20 . 29 14 35 21 Thermal 122 | 5 11 42 2 16 . 14 2 16 14 Explosive . | . . . . . . . . . . Electromagnetic 17 | . . 10 . . . . 7 . . Robot Hit Streak 20 | 2 11 20 5 6 . 11 3 3 10 Robot Miss Streak 11 | 3 1 5 1 2 . 2 11 11 4 Penetration Max 1 | . . . . . . 1 . . . Secondary Targets 1 | . . . . 1 . . . . . Max Gunslinging Chain 1 | . . . . 1 . . . . . Shots Hit Robots 211 | 4 17 71 4 19 . 31 14 23 28 Core Hits 87 | 3 7 26 1 9 . 8 9 21 3 Critical Kills 6 | . . . . . . 6 . . . Critical Parts Destroyed 4 | . . . . . . 4 . . . Critical Strikes 32 | . 2 6 . . . 23 . . 1 Burn 7 | . 2 5 . . . . . . . Destroy 23 | . . . . . . 23 . . . Corrupt 1 | . . 1 . . . . . . . Sever 1 | . . . . . . . . . 1 Melee Attacks 7 | . . . . . . . . . 7 Impact . | . . . . . . . . . . Slashing 7 | . . . . . . . . . 7 Piercing . | . . . . . . . . . . Sneak Attacks . | . . . . . . . . . . Combat Hostiles . | . . . . . . . . . . Follow-up Attacks 1 | . . . . . . . . . 1 Damage Inflicted 4124 | 50 213 1255 66 325 . 741 301 308 865 Guns 1897 | 50 213 721 47 325 . 220 . . 321 Cannons 1940 | . . 522 19 . . 521 219 308 351 Explosions 82 | . . . . . . . 82 . . Melee 193 | . . . . . . . . . 193 Ramming 12 | . . 12 . . . . . . . Kinetic 2121 | . 111 639 36 190 . 521 70 233 321 Thermal 1553 | 50 102 458 30 135 . 220 132 75 351 Explosive . | . . . . . . . . . . Electromagnetic 245 | . . 146 . . . . 99 . . Impact . | . . . . . . . . . . Slashing 193 | . . . . . . . . . 193 Piercing . | . . . . . . . . . . Highest Corruption 37 | . . 9 . . . 37 37 37 37 Average Corruption 32 | . . 8 . . . 21 37 37 37 Corruption Purged . | . . . . . . . . . . Corruption Blocked . | . . . . . . . . . . Effects 176 | . . 9 . . . 18 26 79 44 Message Errors 42 | . . 1 . . . 5 6 24 6 Matter Fused 48 | . . 4 . . . 6 5 23 10 Heat Flow Errors 17 | . . 1 . . . 1 . 9 6 Energy Discharges 12 | . . 1 . . . 1 2 6 2 Parts Rejected 4 | . . 1 . . . . 1 . 2 Parts Fused 1 | . . . . . . 1 . . . Data Loss (minor) 21 | . . 1 . . . 2 5 7 6 Data Loss (major) 5 | . . . . . . . 2 3 . Misfires 11 | . . . . . . 1 1 5 4 Misdirections 3 | . . . . . . . . . 3 Weapon Failures 12 | . . . . . . 1 4 2 5 Overload Shots . | . . . . . . . . . . Overflow Damage 44 | . . 19 . . . . 19 6 . Projectiles 28 | . . 19 . . . . 3 6 . Explosions 16 | . . . . . . . 16 . . Melee . | . . . . . . . . . . Knockbacks 18 | . . 6 . . . . 4 8 . Impact . | . . . . . . . . . . Kinetic 18 | . . 6 . . . . 4 8 . Secondary . | . . . . . . . . . . Self-Inflicted Damage 135 | . . . . . . . 135 . . Shots 2 | . . . . . . . 2 . . Rammed 1 | . . 1 . . . . . . . Targets Rammed 2 | . 1 1 . . . . . . . Kicked 1 | . 1 . . . . . . . . Crushed . | . . . . . . . . . . Highest Temperature 255 | 27 105 255 . 108 . 210 6 239 223 Average Temperature 65 | 12 38 82 . 61 . 72 4 58 62 Received Heat Transfer 564 | . 48 240 . 36 . . . . 240 Effects 2 | . . 2 . . . . . . . Interference 2 | . . 2 . . . . . . . Siege Activations . | . . . . . . . . . . Martial Activations . | . . . . . . . . . . Shielding Activations . | . . . . . . . . . . Robots Disrupted . | . . . . . . . . . . Combat Hostiles . | . . . . . . . . . . Robots Corrupted . | . . . . . . . . . . Combat Hostiles . | . . . . . . . . . . Parts Fried 1 | . . 1 . . . . . . . Impact Corruptions . | . . . . . . . . . . Robots Melted . | . . . . . . . . . . Combat Hostiles . | . . . . . . . . . . Parts Melted 4 | . 1 3 . . . . . . . Heat Transferred 3808 | 148 444 1517 74 296 . 444 124 111 650 Parts Sabotaged . | . . . . . . . . . . Parts Stolen . | . . . . . . . . . . Parts Stripped . | . . . . . . . . . . Power Chain Reactions . | . . . . . . . . . . Alert | -11 -10 -9 -8 -8 -7 -7 -7 -7 -7 ------- Run | Yrd Mat Mat Mat Sto Fac Was Fac Low Low Maximum Alert Level 2 | . . . . 2 1 . . . . Low Security (%) 78 | 100 100 100 100 28 44 100 100 . . Level 1 9 | . . . . 15 55 . . . . Level 2 11 | . . . . 56 . . . . . Level 3 . | . . . . . . . . . . Level 4 . | . . . . . . . . . . Level 5 . | . . . . . . . . . . High Security . | . . . . . . . . . . Max Security . | . . . . . . . . . . Peak Influence 635 | 5 41 127 35 635 300 36 81 . . Initial 263 | . 3 11 35 . 263 36 . . . Average 128 | 1 9 64 15 380 202 2 28 . . Influence Increases 2033 | 10 58 555 7 1035 67 . 176 110 15 Destroy 0b10 Robot/C 1100 | . 40 340 . 520 40 . 60 100 . Destroy 0b10 Robot/NC 80 | 10 5 20 5 30 . . 10 . . Destroy Leader 266 | . 12 96 2 124 10 . 12 10 . Allied During Kill 261 | . . . . 256 5 . . . . Successful Hack 22 | . . . . . 12 . 10 . . Disable Machine 90 | . . 15 . 15 . . 60 . . Destroy Structure 34 | . 1 9 . . . . 24 . . Lose Combat Pursuer 180 | . . 75 . 90 . . . . 15 Influence Decreases 2033 | 5 35 498 92 456 542 104 176 110 15 Entered New Map 453 | . 2 17 50 . 316 68 . . . Time Decay 1294 | 5 33 421 42 296 206 10 156 110 15 Lost Part 80 | . . 60 . . . . 20 . . Lost Ally 206 | . . . . 160 20 26 . . . Squads Dispatched 6 | . . 1 . 3 2 . . . . Investigation . | . . . . . . . . . . Extermination 1 | . . . . . 1 . . . . Reinforcement 2 | . . 1 . . 1 . . . . Assault . | . . . . . . . . . . Garrison 3 | . . . . 3 . . . . . Intercept . | . . . . . . . . . . Searches Triggered . | . . . . . . . . . . Construction Impeded . | . . . . . . . . . . Haulers Reinforced . | . . . . . . . . . . Active Scanning Responses . | . . . . . . . . . . Cargo Convoy Interrupts . | . . . . . . . . . . Stealth | -11 -10 -9 -8 -8 -7 -7 -7 -7 -7 --------- Run | Yrd Mat Mat Mat Sto Fac Was Fac Low Low Distress Signals 6 | . . 3 . 3 . . . . . Communications Jammed . | . . . . . . . . . . Distress Signals . | . . . . . . . . . . Times Spotted 75 | . 3 30 1 22 . 6 6 5 2 Peak Tracking Total 5 | . 3 5 1 5 . 4 3 2 1 Tactical Retreats 9 | . . 5 . 3 . . . . 1 Traps | -11 -10 -9 -8 -8 -7 -7 -7 -7 -7 ------- Run | Yrd Mat Mat Mat Sto Fac Was Fac Low Low Traps Triggered 3 | . . 1 . . 1 . . 1 . Indirectly . | . . . . . . . . . . Trap Hack Attempts . | . . . . . . . . . . Triggered . | . . . . . . . . . . Disarmed . | . . . . . . . . . . Reprogrammed . | . . . . . . . . . . Reused . | . . . . . . . . . . Traps Extracted . | . . . . . . . . . . Installed . | . . . . . . . . . . Triggered . | . . . . . . . . . . Machines | -11 -10 -9 -8 -8 -7 -7 -7 -7 -7 ---------- Run | Yrd Mat Mat Mat Sto Fac Was Fac Low Low Machines Disabled 6 | . . 1 . 1 . . 4 . . Max in Single Turn 4 | . . 1 . . . . 4 . . Machines Repaired . | . . . . . . . . . . Machines Dismantled . | . . . . . . . . . . Machines Sabotaged . | . . . . . . . . . . Overloaded Fab Kills . | . . . . . . . . . . Hacking | -11 -10 -9 -8 -8 -7 -7 -7 -7 -7 --------- Run | Yrd Mat Mat Mat Sto Fac Was Fac Low Low Machines Accessed 10 | . . . . 4 2 . 1 2 1 Terminals 7 | . . . . 4 2 . 1 . . Fabricators . | . . . . . . . . . . Repair Stations . | . . . . . . . . . . Recycling Units . | . . . . . . . . . . Scanalyzers . | . . . . . . . . . . Garrison Access . | . . . . . . . . . . Total Hacks 12 | . . . . 4 4 . 1 2 1 Successful 11 | . . . . 4 3 . 1 2 1 Failed 1 | . . . . . 1 . . . . Catastrophic . | . . . . . . . . . . Database Lockouts . | . . . . . . . . . . Manual . | . . . . . . . . . . Terminals 9 | . . . . 4 4 . 1 . . Fabricators . | . . . . . . . . . . Repair Stations . | . . . . . . . . . . Recycling Units . | . . . . . . . . . . Scanalyzers . | . . . . . . . . . . Garrison Access . | . . . . . . . . . . Terminal Hacks 11 | . . . . 4 3 . 1 2 1 Record 6 | . . . . 1 3 . 1 1 . Open Door 5 | . . . . 3 . . . 1 1 Fabricator Hacks . | . . . . . . . . . . Repair Station Hacks . | . . . . . . . . . . Recycling Unit Hacks . | . . . . . . . . . . Scanalyzer . | . . . . . . . . . . Garrison Access Hacks . | . . . . . . . . . . Unauthorized Hacks . | . . . . . . . . . . Terminals . | . . . . . . . . . . Fabricators . | . . . . . . . . . . Repair Stations . | . . . . . . . . . . Recycling Units . | . . . . . . . . . . Scanalyzers . | . . . . . . . . . . Garrison Access . | . . . . . . . . . . Data Cores Recovered 1 | . . . . 1 . . . . . Used . | . . . . . . . . . . Hacking Detections 2 | . . . . . 2 . . . . Full Trace Events . | . . . . . . . . . . Feedback Events . | . . . . . . . . . . Feedback Blocked . | . . . . . . . . . . Robot Schematics Acquired . | . . . . . . . . . . Robots Built . | . . . . . . . . . . Authchips . | . . . . . . . . . . Time . | . . . . . . . . . . Total Robot Build Rating . | . . . . . . . . . . Part Schematics Acquired . | . . . . . . . . . . Parts Built . | . . . . . . . . . . Authchips . | . . . . . . . . . . Time . | . . . . . . . . . . Total Part Build Rating . | . . . . . . . . . . Parts Repaired . | . . . . . . . . . . Time . | . . . . . . . . . . Parts Recycled . | . . . . . . . . . . Recycled Matter . | . . . . . . . . . . Retrieved Matter . | . . . . . . . . . . Retrieved Components . | . . . . . . . . . . Parts Scanalyzed . | . . . . . . . . . . Part Schematics Acquired . | . . . . . . . . . . Parts Damaged . | . . . . . . . . . . Bothacking | -11 -10 -9 -8 -8 -7 -7 -7 -7 -7 ------------ Run | Yrd Mat Mat Mat Sto Fac Was Fac Low Low Used RIF Installer . | . . . . . . . . . . Robots Hacked . | . . . . . . . . . . Non-combat . | . . . . . . . . . . Combat . | . . . . . . . . . . Robot Hacks Applied . | . . . . . . . . . . Relay Couplers Released . | . . . . . . . . . . Fabnet Peak Effective % . | . . . . . . . . . . Robots Rewired . | . . . . . . . . . . Allies Hacked . | . . . . . . . . . . Hacks Repelled . | . . . . . . . . . . Allies | -11 -10 -9 -8 -8 -7 -7 -7 -7 -7 -------- Run | Yrd Mat Mat Mat Sto Fac Was Fac Low Low Total Allies 12 | . . . . 10 . 1 . . 1 Largest Group 10 | . . . . 10 2 2 . . 1 Highest-Rated Group 173 | . . . . 173 32 47 . . 141 Highest-Rated Ally 141 | . . . . 29 16 31 . . 141 Total Orders . | . . . . . . . . . . Ally Attacks 133 | . . . . 103 13 17 . . . Total Damage 1675 | . . . . 1213 155 307 . . . Kills 27 | . . . . 25 2 . . . . Allies Corrupted . | . . . . . . . . . . Allies Melted . | . . . . . . . . . . Intel | -11 -10 -9 -8 -8 -7 -7 -7 -7 -7 ------- Run | Yrd Mat Mat Mat Sto Fac Was Fac Low Low Active Infowar (turns) 3367 | 18 192 916 . . 94 . 64 1469 614 Terrain 1126 | 18 192 916 . . . . . . . Jamming 2147 | . . . . . . . 64 1469 614 ECM 94 | . . . . . 94 . . . . Robot Analysis Total . | . . . . . . . . . . Derelict Logs Recovered 2 | . . . . . . . . 1 1 Drone Launches . | . . . . . . . . . . Drone Recoveries . | . . . . . . . . . . Exploration | -11 -10 -9 -8 -8 -7 -7 -7 -7 -7 ------------- Run | Yrd Mat Mat Mat Sto Fac Was Fac Low Low Turns Passed 5701 | 115 192 1191 121 724 435 380 394 1469 680 Spaces Moved 2952 | 64 108 518 63 302 262 209 213 870 343 Core 97 | 22 . . . . . 61 . . 14 Treads 2256 | . . 69 63 302 262 148 213 870 329 Legs 599 | 42 108 449 . . . . . . . Wheels . | . . . . . . . . . . Hover . | . . . . . . . . . . Flight . | . . . . . . . . . . Fastest Speed 50 | 50 120 120 160 160 160 50 160 160 100 Average Speed 158 | 126 120 162 160 160 160 143 160 160 168 Slowest Speed 550 | 250 120 330 160 160 160 550 160 160 500 Overloaded Moves . | . . . . . . . . . . Propulsion Burnouts . | . . . . . . . . . . Robots Hopped . | . . . . . . . . . . Potential Cave-ins . | . . . . . . . . . . Cave-ins Triggered . | . . . . . . . . . . Exploration Rate (%) 32 | 5 24 40 6 45 8 87 6 74 34 Regions Visited 9 Branch Regions 3 Pre-discovered Areas 1 | . . . . . . . . 1 . Known Exits Taken . | . . . . . . . . . . Unknown Exits Taken 7 | 1 1 1 1 1 . . 1 1 . Scrap Searched 4 | . . . . . . . . 4 . Spaces Dug . | . . . . . . . . . . Terrain Destroyed 32 | . . 2 . . . . 29 . 1 Melee . | . . . . . . . . . . Projectile 3 | . . 2 . . . . . . 1 AOE 29 | . . . . . . . 29 . . Terrain Rammed . | . . . . . . . . . . Walls Destroyed . | . . . . . . . . . . Machines Disabled . | . . . . . . . . . . Actions | -11 -10 -9 -8 -8 -7 -7 -7 -7 -7 --------- Run | Yrd Mat Mat Mat Sto Fac Was Fac Low Low Total 3667 | 87 148 747 79 517 282 247 241 916 403 Wait 345 | . 27 113 . 181 . . . 9 15 Move 2944 | 63 107 517 62 301 262 208 212 869 343 Hop . | . . . . . . . . . . Pick Up 66 | 12 2 16 8 11 5 . 4 6 2 Fast Attach 18 | 1 . 2 . . 2 6 3 3 1 Attach 30 | 6 . 8 2 . 1 . 6 . 7 Detach 1 | . . . . . . . 1 . . Swap 32 | . . 13 2 7 4 . . 4 2 Drop 39 | . . 12 3 5 8 . . 9 2 Fire 184 | 5 11 65 2 12 . 33 15 16 25 Melee 6 | . . . . . . . . . 6 Ram . | . . . . . . . . . . Kick 1 | . 1 . . . . . . . . Crush 1 | . . 1 . . . . . . . Escape Stasis . | . . . . . . . . . . Rewire . | . . . . . . . . . . Trap . | . . . . . . . . . . Miscellaneous . | . . . . . . . . . . Route ------- -11/Scrapyard -10/Materials -9/Materials -8/Materials -8/Storage -7/Factory -7/Waste -7/Factory -7/Lower Caves -7/Lower Caves History --------- Turn | Location | Event 7 | -11/Scrapyard | Discovered new exit (range 15) 116 | -11/Scrapyard | Entered Materials 295 | -10/Materials | Discovered new exit (range 11) 308 | -10/Materials | Entered another Materials area 308 | -9/Materials | Evolved 2 slots: Propulsion x1, Utility x1 339 | -9/Materials | Build established: Mutant 1263 | -9/Materials | Lost 4 parts (1n2u1w) 1483 | -9/Materials | Discovered new exit (range 10) 1499 | -9/Materials | Entered another Materials area 1499 | -8/Materials | Evolved 2 slots: Power x1, Weapon x1 1501 | -8/Materials | Discovered new exit (range 8) 1620 | -8/Materials | Entered Storage 1659 | -8/Storage | Assisted by bots powering up and referring to "LRC-V3" 1787 | -8/Storage | Garrison activated, responded to threat 1849 | -8/Storage | Lost 3 allies 1988 | -8/Storage | Lost 3 allies 2203 | -8/Storage | Discovered new exit (range 5) 2344 | -8/Storage | Entered Factory 2344 | -7/Factory | Accompanied by 2 allies 2344 | -7/Factory | Evolved 2 slots: Propulsion x1, Utility x1 2386 | -7/Factory | Build established: Gunner 2779 | -7/Factory | Sucked down chute 2779 | -7/Factory | Entered Waste 2780 | -7/Waste | Met a frightened Derelict 2789 | -7/Waste | 1 allies followed down the chute 2792 | -7/Waste | Spotted C-40 Crusher 2794 | -7/Waste | EMP discharged 2827 | -7/Waste | Crushed by Compactor (1 part destroyed, 1 dropped) 2842 | -7/Waste | Spotted C-40 Crusher 2855 | -7/Waste | Crushed by Compactor (1 part destroyed, 2 dropped) 2863 | -7/Waste | Crushed by Compactor (1 part destroyed, 1 dropped) 2868 | -7/Waste | Crushed by Compactor (1 part destroyed, 1 dropped) 2872 | -7/Waste | Crushed by Compactor (1 part destroyed, 2 dropped) 2880 | -7/Waste | Crushed by Compactor (1 part destroyed) 2894 | -7/Waste | EMP discharged 2894 | -7/Waste | System corruption reached 10% 2894 | -7/Waste | Spotted C-40 Crusher 2895 | -7/Waste | Spotted C-40 Crusher 2911 | -7/Waste | Lost 6 parts (1p2n1u2w) 2914 | -7/Waste | Destroyed C-40 Crusher 2920 | -7/Waste | Destroyed C-40 Crusher 2938 | -7/Waste | Spotted C-40 Crusher 2950 | -7/Waste | Destroyed C-40 Crusher 2954 | -7/Waste | Destroyed C-40 Crusher 2964 | -7/Waste | Spotted C-40 Crusher 2972 | -7/Waste | Destroyed C-40 Crusher 2974 | -7/Waste | Destroyed C-40 Crusher 2994 | -7/Waste | EMP discharged 3021 | -7/Waste | System corruption reached 30% 3094 | -7/Waste | EMP discharged 3135 | -7/Waste | Discovered new exit (range 15) 3159 | -7/Waste | Entered Factory 3529 | -7/Factory | Discovered new exit (range 16) 3553 | -7/Factory | Entered Lower Caves 3577 | -7/Lower Caves | Build established: Tank 3634 | -7/Lower Caves | Entered a destroyed Warlord outpost 3999 | -7/Lower Caves | Found DCF Scrap (16 items) 4299 | -7/Lower Caves | Build established: Derelict-Mutant 4621 | -7/Lower Caves | Encountered a Warlord checkpoint 4998 | -7/Lower Caves | Discovered new exit (range 16) 5022 | -7/Lower Caves | Entered another Lower Caves area 5158 | -7/Lower Caves | Spotted B-75 Beast 5288 | -7/Lower Caves | Encountered a Warlord checkpoint 5329 | -7/Lower Caves | Learned location of 1 exit from Factory 5512 | -7/Lower Caves | Build established: Mutant 5590 | -7/Lower Caves | Core integrity fell below 50% 5659 | -7/Lower Caves | Core integrity fell below 20% 5683 | -7/Lower Caves | Lost 9 parts (2p2n3u2w) 5702 | -7/Lower Caves | Destroyed by B-75 Beast with Heavy Machine Gun Last Messages --------------- Critical hit (Blast). Knocked back. Nuclear Core destroyed. System corrupted: Heat flow error (+282). Imp. Cooling System destroyed. Knocked back. A strange signal echoes through the caves. Ripper follow-up attack on B-75 Beast. B-75 Beast Imp. Medium Treads severed. Knocked back. System corrupted: FCS attempts to trigger Plasma Cannon. System corrupted: Plasma Cannon misfires. Knocked back. Acquired 16 matter. System corrupted: Matter fused (-7). Acquired 3 matter. Acquired 5 matter. System corrupted: Matter fused (-10). Acquired 1 matter. Map ----- +----------------------------------------------------+ | ?????????????????????# # #??????## | | ?????????????????????## %% ## ##?######" | | ????????????????####### = #####??#X % ##" | | ????????????????# %######?????### ## | | ????????????????# #### #" "#?????????#!! [##"# | | ????????????????# #??####" "#?????????##[]#### | | ????????????????# #????##" "#?????????###### | | ??????????????### ######"# ###????????# ### | | ??????????????#" """" " #????????# | | ??????????????## % %##??######" | | ??????????????#" % "#"" #???## """ | | ??????????????##" ###?#" ##### | | ???????????????#######????" | | ??????????????????????###?# #### | | ?????????????????????## ### #??## %% | | ?????????????????????# %## #?##" | | ?????????????????????# # #?# "" ##### | | ?????????????????????# ###% ####???## ### | | ?????????????????????# #???##??###?### | | ?????????????????????# ## =% %#??? ###??????? | | ???????????????########?## #?? #???????# | | ???????????#???# ##### ##### %### ##??????? | | ???????????# ??# ##%% ####???## ### #?? | | ????????????# ## ## ##?????# #? | | ?????????????#" ### #?????# % % % ? | | ??????????????# "" "# @##????# %% % % % ? | | ??????????????## #" "## %##??## % ? | | ??????????????## %" "#;; #??# ###% % ? | | ??????????????#" ; ## #### % % %##???? ??? | | ??????????????# "" ; ?# ## % #????????? | | ??????????????# ";BB;### ### # ##????????? | | ??????????????# %"%;BB; ##?# ## ##?????????? | | ??????????????#####% % % ##?# #?###??????????? | | ??????????????????# %### #??????????????? | | ??????????????????# % ## #??????????????? | | ????????????????! ###### ; #??????????????? | | ????????????? %%## #????#########??????????????? | | ??????????? % ??# ##???????????????????????????? | | ????????? ???###????????????????????????????? | | ????????? ???????????????????????????????????? | | ???????? ????????????????????????????????????? | | ?????????? ?????????????????????????????????????? | | ?????????? ??????????????????????????????????????? | | ?????????????????????????????????????????????????? | | ?????????????????????????????????????????????????? | | ?????????????????????????????????????????????????? | | ?????????????????????????????????????????????????? | | ?????????????????????????????????????????????????? | | ?????????????????????????????????????????????????? | | ?????????????????????????????????????????????????? | +----------------------------------------------------+ Best States ------------- Heat Dissipation 88 Energy Generation 25 Energy Capacity 430 Matter Stores 300 Matter Capacity 300 Sight Range 16 Terrain Scan Range 16 Terrain Scan Density 110 ECM Strength 2 Jamming Range 12 EM Shielding 2 Evasion (%) 55 Targeting Accuracy 5 Recoil Reduction 4 Item Schematics ----------------- None Robot Schematics ------------------ None Fabricated ------------ Nothing Repaired ---------- Nothing Alien Tech Used ----------------- None Achievements -------------- None Challenges ------------ None Game ------ Seed NovaGaussCarapace Manual? 0 Play Time 00:51:47 Cumulative 13.0 hours Start 2025.07.28 @ 12:12:38 End 2025.07.28 @ 14:32:14 Sessions 1 Manual Loads 0 Difficulty Rogue Special Mode None Game No. 26 Rogue 23 Adventurer 3 Explorer 0 Win Type - Total 0 Types 0/0/0/0/0/0/0/0/0/0 Lore% 10 Gallery% 16 Achievement% 16 Wizard Run 0 Options --------- Layout 1 ASCII 0 Keyboard 0 Movement Mouse Keybinds 0 Fullscreen 1 Font 24/Smallcaps Map View 50x35 Zoom Use 0% Tactical HUD 0 Map Filters NONE Filters NONE Steam 1 RUN: 1306f5e5-8a3a-4796-ba80-1d9528371768